[Event "*** Titled Tuesday Blitz"]
[Site "Chess.com"]
[Date "2020.11.10"]
[Round "11"]
[White "elamier"]
[Black "LubovMarkelova"]
[Result "1-0"]
[WhiteElo "2335"]
[BlackElo "2211"]
[TimeControl "180+1"]
[EndTime "12:13:09 PST"]
[Termination "elamier won by checkmate"]

1. e4 {[%clk 0:03:00.9]} 1... e6 {[%clk 0:02:55.2]} 2. d4 {[%clk 0:03:00.1]}
2... d5 {[%clk 0:02:54.7]} 3. e5 {[%clk 0:03:00.4]} 3... c5 {[%clk 0:02:54.3]}
4. c3 {[%clk 0:02:57.5]} 4... Qb6 {[%clk 0:02:54.8]} 5. a3 {[%clk 0:02:56.2]}
5... Nc6 {[%clk 0:02:53.4]} 6. Nf3 {[%clk 0:02:55.1]} 6... Nh6 {[%clk
0:02:53.9]} 7. b4 {[%clk 0:02:52.6]} 7... cxd4 {[%clk 0:02:54.1]} 8. Bxh6 {[%clk
0:02:51.5]} 8... gxh6 {[%clk 0:02:55]} 9. cxd4 {[%clk 0:02:51.2]} 9... Rg8
{[%clk 0:02:50.9]} 10. g3 {[%clk 0:02:47.2]} 10... Bd7 {[%clk 0:02:49.1]} 11.
Nc3 {[%clk 0:02:39.6]} 11... Nxb4 {[%clk 0:02:42.3]} 12. Be2 {[%clk 0:02:14.3]}
12... Nc6 {[%clk 0:02:32.2]} 13. O-O {[%clk 0:02:12.4]} 13... Be7 {[%clk
0:02:22.6]} 14. Qd3 {[%clk 0:02:10.1]} 14... Rg6 {[%clk 0:02:06.9]} 15. Rfb1
{[%clk 0:02:08.4]} 15... Qc7 {[%clk 0:02:01.7]} 16. Nb5 {[%clk 0:02:06.7]} 16...
Qc8 {[%clk 0:02:00.1]} 17. Qd2 {[%clk 0:01:50.5]} 17... a6 {[%clk 0:01:59.5]}
18. Nc3 {[%clk 0:01:49.2]} 18... Na5 {[%clk 0:01:51.2]} 19. Bd3 {[%clk
0:01:47.7]} 19... Nc4 {[%clk 0:01:48.3]} 20. Qe2 {[%clk 0:01:22.8]} 20... Rg4
{[%clk 0:01:38.2]} 21. Rc1 {[%clk 0:01:09.2]} 21... b5 {[%clk 0:01:36.8]} 22. a4
{[%clk 0:01:07]} 22... h5 {[%clk 0:01:23.1]} 23. Nd2 {[%clk 0:00:37.1]} 23...
Rxd4 {[%clk 0:01:13.2]} 24. Nb3 {[%clk 0:00:29.7]} 24... Rxd3 {[%clk 0:01:03.6]}
25. Qxd3 {[%clk 0:00:29.5]} 25... b4 {[%clk 0:00:49.3]} 26. Ne2 {[%clk
0:00:19.7]} 26... Qb7 {[%clk 0:00:48.7]} 27. Qxh7 {[%clk 0:00:19.2]} 27... Nxe5
{[%clk 0:00:36.7]} 28. Qh8+ {[%clk 0:00:18.1]} 28... Bf8 {[%clk 0:00:36.9]} 29.
Qxe5 {[%clk 0:00:18.4]} 29... Rc8 {[%clk 0:00:36.5]} 30. Rxc8+ {[%clk
0:00:17.4]} 30... Qxc8 {[%clk 0:00:36.8]} 31. Rc1 {[%clk 0:00:17.8]} 31... Qb7
{[%clk 0:00:36.3]} 32. Ned4 {[%clk 0:00:18.2]} 32... Bxa4 {[%clk 0:00:34.8]} 33.
Rc7 {[%clk 0:00:15.9]} 33... Qb6 {[%clk 0:00:26.6]} 34. Nf5 {[%clk 0:00:09.8]}
34... Bxb3 {[%clk 0:00:22.7]} 35. Rc8+ {[%clk 0:00:09.6]} 35... Kd7 {[%clk
0:00:21.3]} 36. Rxf8 {[%clk 0:00:10.2]} 36... Qc5 {[%clk 0:00:15.5]} 37. Rxf7+
{[%clk 0:00:10.5]} 37... Kc6 {[%clk 0:00:15.3]} 38. Qxe6+ {[%clk 0:00:10.5]}
38... Kb5 {[%clk 0:00:15.8]} 39. Rb7+ {[%clk 0:00:10.3]} 39... Ka4 {[%clk
0:00:16]} 40. Ne3 {[%clk 0:00:10.7]} 40... Qc1+ {[%clk 0:00:15.5]} 41. Kg2
{[%clk 0:00:10.1]} 41... d4 {[%clk 0:00:16]} 42. Qxa6# {[%clk 0:00:07.4]} 1-0

[Event "*** Titled Tuesday Blitz"]
[Site "Chess.com"]
[Date "2020.11.10"]
[Round "11"]
[White "IMRosen"]
[Black "VMikhalevski"]
[Result "0-1"]
[WhiteElo "2575"]
[BlackElo "2728"]
[TimeControl "180+1"]
[EndTime "12:13:10 PST"]
[Termination "VMikhalevski won by checkmate"]

1. d4 {[%clk 0:03:00.9]} 1... Nf6 {[%clk 0:02:59.3]} 2. Bf4 {[%clk 0:03:00.6]}
2... d5 {[%clk 0:02:56]} 3. e3 {[%clk 0:03:00.4]} 3... Bg4 {[%clk 0:02:55.7]} 4.
Nf3 {[%clk 0:02:53.9]} 4... e6 {[%clk 0:02:53.9]} 5. c3 {[%clk 0:02:54]} 5... c6
{[%clk 0:02:52.1]} 6. Nbd2 {[%clk 0:02:53]} 6... Nbd7 {[%clk 0:02:51.8]} 7. Qb3
{[%clk 0:02:52.9]} 7... Qb6 {[%clk 0:02:45.9]} 8. c4 {[%clk 0:02:53.1]} 8... Bb4
{[%clk 0:02:44.2]} 9. a3 {[%clk 0:01:55.9]} 9... Ba5 {[%clk 0:02:43.3]} 10. Qxb6
{[%clk 0:01:50.4]} 10... axb6 {[%clk 0:02:39.9]} 11. h3 {[%clk 0:01:39.7]} 11...
Bxf3 {[%clk 0:02:35.6]} 12. gxf3 {[%clk 0:01:39.7]} 12... dxc4 {[%clk 0:02:32]}
13. Bxc4 {[%clk 0:01:37.8]} 13... b5 {[%clk 0:02:32.1]} 14. Bd3 {[%clk
0:01:34.2]} 14... Nb6 {[%clk 0:02:20.5]} 15. Ke2 {[%clk 0:01:25.8]} 15... Na4
{[%clk 0:02:20.2]} 16. Rab1 {[%clk 0:01:20.4]} 16... Nd5 {[%clk 0:02:12.1]} 17.
Bg3 {[%clk 0:01:10.7]} 17... Ke7 {[%clk 0:02:05.4]} 18. Rhc1 {[%clk 0:01:09.8]}
18... Rhd8 {[%clk 0:02:03.3]} 19. Ne4 {[%clk 0:00:58.4]} 19... f5 {[%clk
0:01:54.2]} 20. Bh4+ {[%clk 0:00:55.8]} 20... Ke8 {[%clk 0:01:45.1]} 21. Bxd8
{[%clk 0:00:48.9]} 21... Rxd8 {[%clk 0:01:40.2]} 22. Nc5 {[%clk 0:00:44.9]}
22... Nxc5 {[%clk 0:01:33.3]} 23. dxc5 {[%clk 0:00:43.9]} 23... Kf7 {[%clk
0:01:25.4]} 24. b4 {[%clk 0:00:35.1]} 24... Bc7 {[%clk 0:01:24.3]} 25. Rb3
{[%clk 0:00:35.5]} 25... Be5 {[%clk 0:01:21]} 26. f4 {[%clk 0:00:32.3]} 26...
Bf6 {[%clk 0:01:20.4]} 27. Kf3 {[%clk 0:00:30.8]} 27... h6 {[%clk 0:01:17.9]}
28. Rd1 {[%clk 0:00:29.2]} 28... Nc3 {[%clk 0:01:16.8]} 29. Rd2 {[%clk
0:00:22.7]} 29... g5 {[%clk 0:01:14.3]} 30. fxg5 {[%clk 0:00:10.3]} 30... hxg5
{[%clk 0:01:11.4]} 31. Rbb2 {[%clk 0:00:04.8]} 31... Ra8 {[%clk 0:01:04.2]} 32.
Rbc2 {[%clk 0:00:05.3]} 32... Rxa3 {[%clk 0:01:03.3]} 33. Bf1 {[%clk 0:00:05.5]}
33... Nd5 {[%clk 0:01:01.9]} 34. Rc1 {[%clk 0:00:02.2]} 34... Ke7 {[%clk
0:00:57.6]} 35. Rb1 {[%clk 0:00:02.3]} 35... Bc3 {[%clk 0:00:56.1]} 36. Rc2
{[%clk 0:00:02.3]} 36... Bxb4 {[%clk 0:00:55.3]} 37. Kg3 {[%clk 0:00:01.8]}
37... f4+ {[%clk 0:00:53.6]} 38. Kg4 {[%clk 0:00:02.7]} 38... fxe3 {[%clk
0:00:53.3]} 39. Kxg5 {[%clk 0:00:03.4]} 39... exf2 {[%clk 0:00:49.2]} 40. Rxf2
{[%clk 0:00:04.3]} 40... Bxc5 {[%clk 0:00:49.2]} 41. Rc2 {[%clk 0:00:02.7]}
41... Be3+ {[%clk 0:00:42.1]} 42. Kg6 {[%clk 0:00:02.4]} 42... Ra8 {[%clk
0:00:40.5]} 43. Kg7 {[%clk 0:00:02.2]} 43... Bd4+ {[%clk 0:00:38.5]} 44. Kg6
{[%clk 0:00:02]} 44... Rg8+ {[%clk 0:00:37.9]} 45. Kh5 {[%clk 0:00:02.5]} 45...
Nf4+ {[%clk 0:00:36.3]} 46. Kh6 {[%clk 0:00:02.4]} 46... Rh8+ {[%clk 0:00:36.2]}
47. Kg5 {[%clk 0:00:02.5]} 47... Nd5 {[%clk 0:00:31.1]} 48. h4 {[%clk
0:00:02.1]} 48... Rg8+ {[%clk 0:00:29.3]} 49. Kh6 {[%clk 0:00:01.8]} 49... Be3+
{[%clk 0:00:26.2]} 50. Kh7 {[%clk 0:00:01.8]} 50... Nf6# {[%clk 0:00:25.9]} 0-1

[Event "*** Titled Tuesday Blitz"]
[Site "Chess.com"]
[Date "2020.11.10"]
[Round "11"]
[White "LittleMyMoomin"]
[Black "annacramling"]
[Result "0-1"]
[WhiteElo "1852"]
[BlackElo "2022"]
[TimeControl "180+1"]
[EndTime "12:13:10 PST"]
[Termination "annacramling won on time"]

1. d4 {[%clk 0:03:00.9]} 1... Nf6 {[%clk 0:02:40.6]} 2. g3 {[%clk 0:03:00.2]}
2... d5 {[%clk 0:02:39.6]} 3. Nf3 {[%clk 0:02:59.5]} 3... c5 {[%clk 0:02:39.5]}
4. Bg2 {[%clk 0:02:58.2]} 4... Nc6 {[%clk 0:02:39.5]} 5. O-O {[%clk 0:02:53.3]}
5... cxd4 {[%clk 0:02:35.1]} 6. Nxd4 {[%clk 0:02:52.7]} 6... e5 {[%clk
0:02:35.5]} 7. Nb3 {[%clk 0:02:52.6]} 7... Be7 {[%clk 0:02:28.7]} 8. c4 {[%clk
0:02:52.2]} 8... dxc4 {[%clk 0:02:02.5]} 9. N3d2 {[%clk 0:02:50.2]} 9... Be6
{[%clk 0:01:59.9]} 10. a3 {[%clk 0:02:36.1]} 10... O-O {[%clk 0:01:56.8]} 11.
Qc2 {[%clk 0:02:36.2]} 11... Nd4 {[%clk 0:01:53.1]} 12. Qd1 {[%clk 0:02:08.4]}
12... Qc7 {[%clk 0:01:52.3]} 13. Nc3 {[%clk 0:02:00.2]} 13... Rfd8 {[%clk
0:01:49]} 14. Qa4 {[%clk 0:01:34.9]} 14... a6 {[%clk 0:01:17.7]} 15. e3 {[%clk
0:00:36.3]} 15... b5 {[%clk 0:01:13.8]} 16. Qd1 {[%clk 0:00:32.3]} 16... Nc6
{[%clk 0:01:06.5]} 17. Qe2 {[%clk 0:00:24.9]} 17... Rac8 {[%clk 0:00:53.5]} 18.
Nde4 {[%clk 0:00:24]} 18... Nxe4 {[%clk 0:00:53.3]} 19. Nxe4 {[%clk 0:00:23.4]}
19... f5 {[%clk 0:00:52.9]} 20. Nc3 {[%clk 0:00:21.7]} 20... e4 {[%clk
0:00:51.2]} 21. h3 {[%clk 0:00:17.7]} 21... Ne5 {[%clk 0:00:49.9]} 22. Kh1
{[%clk 0:00:15.5]} 22... Nd3 {[%clk 0:00:29.5]} 23. Rd1 {[%clk 0:00:08.8]} 23...
Bf6 {[%clk 0:00:23.5]} 24. Kg1 {[%clk 0:00:06.9]} 24... Nc5 {[%clk 0:00:15.4]}
25. g4 {[%clk 0:00:07.3]} 25... Nb3 {[%clk 0:00:06.9]} 26. gxf5 {[%clk
0:00:04.7]} 26... Bxf5 {[%clk 0:00:06.2]} 27. Rb1 {[%clk 0:00:04.2]} 27... Rxd1+
{[%clk 0:00:05.6]} 28. Qxd1 {[%clk 0:00:03.9]} 28... Rd8 {[%clk 0:00:05.8]} 29.
Qc2 {[%clk 0:00:04.1]} 29... Nc5 {[%clk 0:00:04.2]} 30. b4 {[%clk 0:00:03.2]}
30... Nd3 {[%clk 0:00:04]} 31. Bb2 {[%clk 0:00:02.8]} 31... Bg6 {[%clk
0:00:03.9]} 32. Ba1 {[%clk 0:00:03]} 32... Qe5 {[%clk 0:00:03.6]} 33. Nxe4
{[%clk 0:00:02.4]} 33... Qf5 {[%clk 0:00:03]} 34. Nxf6+ {[%clk 0:00:02.5]} 34...
gxf6 {[%clk 0:00:03.3]} 35. Rf1 {[%clk 0:00:01.7]} 35... Qg5 {[%clk 0:00:03.5]}
36. Qe2 {[%clk 0:00:02.5]} 36... Ne5 {[%clk 0:00:03.6]} 37. f4 {[%clk
0:00:01.7]} 37... Qh5 {[%clk 0:00:03.3]} 38. Qf2 {[%clk 0:00:01.4]} 38... Nd3
{[%clk 0:00:02.6]} 0-1

[Event "*** Titled Tuesday Blitz"]
[Site "Chess.com"]
[Date "2020.11.10"]
[Round "11"]
[White "karwowskikacper"]
[Black "nitpicker"]
[Result "0-1"]
[WhiteElo "2420"]
[BlackElo "2263"]
[TimeControl "180+1"]
[EndTime "12:13:11 PST"]
[Termination "nitpicker won on time"]

1. e4 {[%clk 0:03:00.9]} 1... d5 {[%clk 0:02:59.7]} 2. exd5 {[%clk 0:03:01]}
2... Qxd5 {[%clk 0:02:59.8]} 3. Nc3 {[%clk 0:03:00.2]} 3... Qd8 {[%clk
0:02:59.6]} 4. g3 {[%clk 0:02:59.2]} 4... g6 {[%clk 0:02:58.3]} 5. Bg2 {[%clk
0:02:59.5]} 5... c6 {[%clk 0:02:58.6]} 6. Nge2 {[%clk 0:03:00.4]} 6... Bg7
{[%clk 0:02:58.8]} 7. O-O {[%clk 0:03:00.8]} 7... e5 {[%clk 0:02:58.9]} 8. d3
{[%clk 0:03:00.6]} 8... Ne7 {[%clk 0:02:55.8]} 9. f4 {[%clk 0:03:00.4]} 9... Nd7
{[%clk 0:02:51.8]} 10. Kh1 {[%clk 0:02:46.2]} 10... O-O {[%clk 0:02:51.1]} 11.
fxe5 {[%clk 0:02:42]} 11... Nxe5 {[%clk 0:02:49.5]} 12. Bf4 {[%clk 0:02:40.9]}
12... Be6 {[%clk 0:02:41.9]} 13. Qd2 {[%clk 0:02:32.1]} 13... Nd5 {[%clk
0:02:38.4]} 14. Nxd5 {[%clk 0:02:31.4]} 14... Bxd5 {[%clk 0:02:38.2]} 15. Nc3
{[%clk 0:02:31.7]} 15... Bxg2+ {[%clk 0:02:37]} 16. Kxg2 {[%clk 0:02:32.6]}
16... Re8 {[%clk 0:02:25.4]} 17. h3 {[%clk 0:02:25.3]} 17... Qd4 {[%clk
0:02:06.5]} 18. Rae1 {[%clk 0:02:17.8]} 18... Rad8 {[%clk 0:01:59.8]} 19. Qf2
{[%clk 0:02:12.2]} 19... Qxf2+ {[%clk 0:01:50.5]} 20. Rxf2 {[%clk 0:02:13.1]}
20... Nd7 {[%clk 0:01:16.6]} 21. Rfe2 {[%clk 0:02:09]} 21... Rxe2+ {[%clk
0:01:08.3]} 22. Rxe2 {[%clk 0:02:09.9]} 22... Bf6 {[%clk 0:01:05.4]} 23. Bh6
{[%clk 0:01:45.6]} 23... Nb6 {[%clk 0:00:43.3]} 24. h4 {[%clk 0:01:27.3]} 24...
Bg7 {[%clk 0:00:42.8]} 25. Bxg7 {[%clk 0:01:20.7]} 25... Kxg7 {[%clk 0:00:42.2]}
26. Re7 {[%clk 0:01:21.6]} 26... Rd7 {[%clk 0:00:41.8]} 27. Re8 {[%clk
0:01:21.7]} 27... Nd5 {[%clk 0:00:36.9]} 28. Kf3 {[%clk 0:01:16.6]} 28... Nxc3
{[%clk 0:00:34.9]} 29. bxc3 {[%clk 0:01:17.5]} 29... h5 {[%clk 0:00:34.3]} 30.
Ke4 {[%clk 0:01:09.7]} 30... Kf6 {[%clk 0:00:33.6]} 31. Rb8 {[%clk 0:01:07.2]}
31... b6 {[%clk 0:00:30]} 32. a4 {[%clk 0:01:06.9]} 32... Ke6 {[%clk 0:00:26.8]}
33. Rc8 {[%clk 0:01:03.1]} 33... Kd6 {[%clk 0:00:25.6]} 34. d4 {[%clk
0:00:59.4]} 34... Re7+ {[%clk 0:00:25.1]} 35. Kf3 {[%clk 0:00:55.7]} 35... Kd7
{[%clk 0:00:24.3]} 36. Ra8 {[%clk 0:00:54.4]} 36... Kd6 {[%clk 0:00:24.4]} 37.
c4 {[%clk 0:00:53.7]} 37... Rd7 {[%clk 0:00:22]} 38. Re8 {[%clk 0:00:47.2]}
38... Re7 {[%clk 0:00:20.4]} 39. Rd8+ {[%clk 0:00:20.4]} 39... Rd7 {[%clk
0:00:19.6]} 40. Rf8 {[%clk 0:00:19.7]} 40... Re7 {[%clk 0:00:18.4]} 41. c3
{[%clk 0:00:16.8]} 41... Ke6 {[%clk 0:00:18.1]} 42. Kf4 {[%clk 0:00:15.5]} 42...
Kf6 {[%clk 0:00:17]} 43. Rc8 {[%clk 0:00:08.6]} 43... Re6 {[%clk 0:00:15.6]} 44.
Rc7 {[%clk 0:00:03]} 44... a5 {[%clk 0:00:14.5]} 0-1

[Event "*** Titled Tuesday Blitz"]
[Site "Chess.com"]
[Date "2020.11.10"]
[Round "11"]
[White "DishonorOnYourCow"]
[Black "AlexandraBotez"]
[Result "1-0"]
[WhiteElo "2397"]
[BlackElo "2134"]
[TimeControl "180+1"]
[EndTime "12:13:11 PST"]
[Termination "DishonorOnYourCow won on time"]

1. d4 {[%clk 0:03:00.9]} 1... Nf6 {[%clk 0:02:53.3]} 2. c4 {[%clk 0:03:00.5]}
2... g6 {[%clk 0:02:52.4]} 3. Nc3 {[%clk 0:03:00.6]} 3... Bg7 {[%clk 0:02:51.7]}
4. e4 {[%clk 0:03:00.7]} 4... d6 {[%clk 0:02:51.1]} 5. f4 {[%clk 0:03:01]} 5...
O-O {[%clk 0:02:50.2]} 6. Nf3 {[%clk 0:03:01.2]} 6... c5 {[%clk 0:02:50.6]} 7.
d5 {[%clk 0:03:01.6]} 7... e6 {[%clk 0:02:51]} 8. dxe6 {[%clk 0:03:02.1]} 8...
Bxe6 {[%clk 0:02:48]} 9. Bd3 {[%clk 0:03:02.2]} 9... Re8 {[%clk 0:02:45.4]} 10.
O-O {[%clk 0:03:01]} 10... Bg4 {[%clk 0:02:44.8]} 11. h3 {[%clk 0:02:53]} 11...
Bxf3 {[%clk 0:02:44.7]} 12. Qxf3 {[%clk 0:02:53.6]} 12... Nc6 {[%clk 0:02:43.5]}
13. Be3 {[%clk 0:02:43]} 13... Qd7 {[%clk 0:02:26.7]} 14. Rad1 {[%clk
0:02:38.3]} 14... b6 {[%clk 0:02:06.3]} 15. Qf2 {[%clk 0:02:29.3]} 15... Rad8
{[%clk 0:01:27.9]} 16. Bc2 {[%clk 0:02:25]} 16... Qe7 {[%clk 0:01:27.6]} 17.
Rfe1 {[%clk 0:02:17.1]} 17... Nb4 {[%clk 0:01:26.3]} 18. Ba4 {[%clk 0:02:05]}
18... Rf8 {[%clk 0:01:25.2]} 19. a3 {[%clk 0:02:01.4]} 19... Na6 {[%clk
0:01:25.2]} 20. Bc1 {[%clk 0:01:52.7]} 20... Nc7 {[%clk 0:01:08.4]} 21. Nd5
{[%clk 0:01:45.7]} 21... Nfxd5 {[%clk 0:01:06.2]} 22. exd5 {[%clk 0:01:46.4]}
22... Qf6 {[%clk 0:01:06.1]} 23. Qf3 {[%clk 0:01:39.2]} 23... a6 {[%clk
0:01:04.2]} 24. Bc6 {[%clk 0:01:26.6]} 24... Rb8 {[%clk 0:00:52.2]} 25. Re2
{[%clk 0:00:57.2]} 25... b5 {[%clk 0:00:50.9]} 26. cxb5 {[%clk 0:00:44.3]} 26...
Nxb5 {[%clk 0:00:46]} 27. Bxb5 {[%clk 0:00:43]} 27... Rxb5 {[%clk 0:00:41.3]}
28. Rde1 {[%clk 0:00:34.3]} 28... h5 {[%clk 0:00:35.2]} 29. Re8 {[%clk
0:00:29.1]} 29... Qd4+ {[%clk 0:00:33.4]} 30. Kh2 {[%clk 0:00:28.5]} 30... c4
{[%clk 0:00:23.3]} 31. Rxf8+ {[%clk 0:00:19.5]} 31... Kxf8 {[%clk 0:00:23.5]}
32. Rd1 {[%clk 0:00:20.1]} 32... Qf6 {[%clk 0:00:17.3]} 33. Qe4 {[%clk
0:00:20.4]} 33... c3 {[%clk 0:00:13.8]} 34. Re1 {[%clk 0:00:19]} 34... Rb8
{[%clk 0:00:13.3]} 35. bxc3 {[%clk 0:00:18.6]} 35... Qxc3 {[%clk 0:00:08.6]} 36.
Qe7+ {[%clk 0:00:16.8]} 36... Kg8 {[%clk 0:00:09.2]} 37. Qe2 {[%clk 0:00:12.6]}
37... Rb3 {[%clk 0:00:08.2]} 38. Bd2 {[%clk 0:00:11.9]} 38... Qg3+ {[%clk
0:00:08.2]} 39. Kh1 {[%clk 0:00:12.5]} 39... Rxa3 {[%clk 0:00:06.8]} 40. Bb4
{[%clk 0:00:11.6]} 40... Rb3 {[%clk 0:00:04.9]} 41. Bxd6 {[%clk 0:00:11.2]}
41... Rb2 {[%clk 0:00:05]} 42. Qe8+ {[%clk 0:00:07.5]} 42... Kh7 {[%clk
0:00:04.7]} 43. Rg1 {[%clk 0:00:07.9]} 43... Rc2 {[%clk 0:00:01.4]} 44. Qxf7
{[%clk 0:00:07.2]} 44... Qh4 {[%clk 0:00:01.4]} 45. Bf8 {[%clk 0:00:06.1]} 1-0

[Event "*** Titled Tuesday Blitz"]
[Site "Chess.com"]
[Date "2020.11.10"]
[Round "11"]
[White "BanjoKazooieN64"]
[Black "B-man"]
[Result "0-1"]
[WhiteElo "2392"]
[BlackElo "2548"]
[TimeControl "180+1"]
[EndTime "12:13:14 PST"]
[Termination "B-man won by resignation"]

1. e4 {[%clk 0:03:00.9]} 1... c6 {[%clk 0:02:57.1]} 2. Nc3 {[%clk 0:02:54.9]}
2... g6 {[%clk 0:02:55.6]} 3. h4 {[%clk 0:02:49.6]} 3... h5 {[%clk 0:02:54.3]}
4. d4 {[%clk 0:02:48.7]} 4... Bg7 {[%clk 0:02:53.9]} 5. Bg5 {[%clk 0:02:47.9]}
5... Qb6 {[%clk 0:02:44.6]} 6. Nf3 {[%clk 0:02:40.8]} 6... Qxb2 {[%clk
0:02:44.1]} 7. Bd2 {[%clk 0:02:35.6]} 7... Qb6 {[%clk 0:02:36.5]} 8. e5 {[%clk
0:02:28.4]} 8... Nh6 {[%clk 0:02:33.8]} 9. Bc4 {[%clk 0:02:26]} 9... d5 {[%clk
0:02:27.7]} 10. exd6 {[%clk 0:02:25.5]} 10... exd6 {[%clk 0:02:26.6]} 11. Qe2+
{[%clk 0:02:22.1]} 11... Kf8 {[%clk 0:02:24.3]} 12. O-O {[%clk 0:02:21.6]} 12...
Bg4 {[%clk 0:02:01]} 13. Rfe1 {[%clk 0:02:20.1]} 13... Qd8 {[%clk 0:02:01.6]}
14. Bg5 {[%clk 0:02:15.1]} 14... f6 {[%clk 0:01:43.2]} 15. Bf4 {[%clk
0:02:15.1]} 15... d5 {[%clk 0:01:41.8]} 16. Bd3 {[%clk 0:01:59.6]} 16... Nf5
{[%clk 0:01:36.6]} 17. Qe6 {[%clk 0:01:38.2]} 17... Ne7 {[%clk 0:00:36.5]} 18.
Qe3 {[%clk 0:00:56.3]} 18... Kf7 {[%clk 0:00:36.5]} 19. Nh2 {[%clk 0:00:24.6]}
19... Bc8 {[%clk 0:00:23.1]} 20. Qg3 {[%clk 0:00:20.4]} 20... Bf5 {[%clk
0:00:19]} 21. Bd6 {[%clk 0:00:15.2]} 21... Re8 {[%clk 0:00:15.7]} 22. Re3 {[%clk
0:00:15.2]} 22... Bxd3 {[%clk 0:00:14.3]} 23. Bxe7 {[%clk 0:00:15.6]} 23... Rxe7
{[%clk 0:00:14.5]} 24. Rxd3 {[%clk 0:00:15.8]} 24... Na6 {[%clk 0:00:11.9]} 25.
Nd1 {[%clk 0:00:13.4]} 25... Qc7 {[%clk 0:00:11.8]} 26. f4 {[%clk 0:00:12.4]}
26... Rae8 {[%clk 0:00:11.5]} 27. Nf3 {[%clk 0:00:12.5]} 27... Nb4 {[%clk
0:00:10.7]} 28. Rd2 {[%clk 0:00:12.1]} 28... a5 {[%clk 0:00:09.6]} 29. a3 {[%clk
0:00:11.4]} 29... Na6 {[%clk 0:00:09.9]} 30. Nf2 {[%clk 0:00:11.7]} 30... Qd7
{[%clk 0:00:10.2]} 31. Nd3 {[%clk 0:00:10.9]} 31... Qf5 {[%clk 0:00:10.1]} 32.
Rb1 {[%clk 0:00:10.9]} 32... b5 {[%clk 0:00:08.5]} 33. Rdd1 {[%clk 0:00:11.3]}
33... a4 {[%clk 0:00:08.2]} 34. Nf2 {[%clk 0:00:09.9]} 34... Nc7 {[%clk
0:00:07.6]} 35. Ne1 {[%clk 0:00:09]} 35... Ne6 {[%clk 0:00:06.7]} 36. Ned3
{[%clk 0:00:07.9]} 36... Nxd4 {[%clk 0:00:07.1]} 37. Nc5 {[%clk 0:00:06.5]}
37... Ne2+ {[%clk 0:00:07.2]} 38. Kh2 {[%clk 0:00:07.1]} 38... Nxg3 {[%clk
0:00:07.7]} 39. Kxg3 {[%clk 0:00:07.6]} 39... Bh6 {[%clk 0:00:07.8]} 40. Ncd3
{[%clk 0:00:07.6]} 40... Re3+ {[%clk 0:00:07.1]} 41. Kh2 {[%clk 0:00:07]} 41...
Bxf4+ {[%clk 0:00:07.4]} 42. Nxf4 {[%clk 0:00:07.3]} 42... Qxf4+ {[%clk
0:00:08.3]} 43. Kg1 {[%clk 0:00:08]} 43... Qxh4 {[%clk 0:00:08.1]} 44. Rf1
{[%clk 0:00:08.9]} 44... Qg5 {[%clk 0:00:08]} 45. Nh3 {[%clk 0:00:08.9]} 45...
Rxh3 {[%clk 0:00:08.1]} 0-1

[Event "*** Titled Tuesday Blitz"]
[Site "Chess.com"]
[Date "2020.11.10"]
[Round "11"]
[White "Tashik"]
[Black "The_Machine04"]
[Result "0-1"]
[WhiteElo "2435"]
[BlackElo "2298"]
[TimeControl "180+1"]
[EndTime "12:13:17 PST"]
[Termination "The_Machine04 won on time"]

1. c4 {[%clk 0:03:00.9]} 1... d6 {[%clk 0:02:54.4]} 2. d4 {[%clk 0:02:59.5]}
2... e5 {[%clk 0:02:51.8]} 3. Nf3 {[%clk 0:02:55.1]} 3... e4 {[%clk 0:02:46.9]}
4. Ng5 {[%clk 0:02:54.8]} 4... f5 {[%clk 0:02:37]} 5. Nc3 {[%clk 0:02:52.4]}
5... Be7 {[%clk 0:02:32.1]} 6. Nh3 {[%clk 0:02:50.5]} 6... Nf6 {[%clk
0:02:30.7]} 7. g3 {[%clk 0:02:50.6]} 7... O-O {[%clk 0:02:21.2]} 8. Bg2 {[%clk
0:02:50.2]} 8... Na6 {[%clk 0:02:16.7]} 9. O-O {[%clk 0:02:47.3]} 9... c6 {[%clk
0:02:14.7]} 10. d5 {[%clk 0:02:44.5]} 10... c5 {[%clk 0:02:10.7]} 11. f3 {[%clk
0:02:42.5]} 11... exf3 {[%clk 0:01:56.7]} 12. Rxf3 {[%clk 0:02:33.8]} 12... Nc7
{[%clk 0:01:51.8]} 13. Nf4 {[%clk 0:02:20.6]} 13... Nd7 {[%clk 0:01:46.6]} 14.
Nd3 {[%clk 0:01:49.1]} 14... Ne5 {[%clk 0:01:32]} 15. Nxe5 {[%clk 0:01:48.7]}
15... dxe5 {[%clk 0:01:32.9]} 16. e4 {[%clk 0:01:49]} 16... Ne8 {[%clk
0:01:22.5]} 17. exf5 {[%clk 0:01:45.3]} 17... Bxf5 {[%clk 0:01:23.4]} 18. Be3
{[%clk 0:01:41.4]} 18... b6 {[%clk 0:01:20.3]} 19. Ne4 {[%clk 0:01:35.4]} 19...
Bxe4 {[%clk 0:01:05.8]} 20. Rxf8+ {[%clk 0:01:34.8]} 20... Bxf8 {[%clk
0:01:06.7]} 21. Bxe4 {[%clk 0:01:35.3]} 21... Nd6 {[%clk 0:01:07.6]} 22. Qd3
{[%clk 0:01:14.2]} 22... g6 {[%clk 0:01:02.6]} 23. Rf1 {[%clk 0:01:11.5]} 23...
Bg7 {[%clk 0:01:01.4]} 24. b3 {[%clk 0:01:08]} 24... Qd7 {[%clk 0:00:55.3]} 25.
Bg2 {[%clk 0:00:59.6]} 25... Rf8 {[%clk 0:00:53]} 26. Rxf8+ {[%clk 0:00:53.4]}
26... Kxf8 {[%clk 0:00:53.9]} 27. Qf1+ {[%clk 0:00:51.3]} 27... Qf5 {[%clk
0:00:53.7]} 28. Bg5 {[%clk 0:00:38.8]} 28... Qxf1+ {[%clk 0:00:49.7]} 29. Kxf1
{[%clk 0:00:39.7]} 29... Ke8 {[%clk 0:00:47.7]} 30. Ke2 {[%clk 0:00:38.3]} 30...
h6 {[%clk 0:00:42.5]} 31. Bd2 {[%clk 0:00:35.8]} 31... Kf7 {[%clk 0:00:39.3]}
32. Kd3 {[%clk 0:00:35.4]} 32... h5 {[%clk 0:00:27.5]} 33. a3 {[%clk 0:00:28.5]}
33... a5 {[%clk 0:00:25]} 34. b4 {[%clk 0:00:27.3]} 34... axb4 {[%clk
0:00:24.9]} 35. axb4 {[%clk 0:00:28.2]} 35... Bf8 {[%clk 0:00:20.5]} 36. bxc5
{[%clk 0:00:18.1]} 36... bxc5 {[%clk 0:00:21.4]} 37. Bc3 {[%clk 0:00:13.2]}
37... Kf6 {[%clk 0:00:19.5]} 38. Be4 {[%clk 0:00:05.9]} 38... Be7 {[%clk
0:00:15.3]} 39. h3 {[%clk 0:00:05.2]} 39... g5 {[%clk 0:00:11.2]} 40. Bf3 {[%clk
0:00:03.5]} 40... h4 {[%clk 0:00:10.5]} 41. gxh4 {[%clk 0:00:02.7]} 41... gxh4
{[%clk 0:00:11.4]} 42. Bg4 {[%clk 0:00:01.7]} 42... Bf8 {[%clk 0:00:08.9]} 0-1